fUSD/lending_fUSD_20240114
["ID","MTS","AMOUNT","RATE_DAILY","PERIOD"]
[311589374,1705255097831,532.55789459,0.00022,2]
[311589375,1705255098350,7411.89166272,0.00022,2]
[311589376,1705255098515,732.05269482,0.00022,2]
[311589377,1705255098769,283.72064284,0.00022,2]
[311589378,1705255099818,291.35371355,0.00022,2]
[311589379,1705255099926,1016.19080931,0.00022,2]
[311589380,1705255100054,1362.16515976,0.0002178,2]
[311589381,1705255100887,155.0,0.00022,2]
[311589382,1705255101426,543.24680198,0.00022,2]
[311589383,1705255102635,1596.49083475,0.000176,2]
[311589384,1705255103677,5182.0088255,0.00022,2]
[311589385,1705255104011,282.67530798,0.00022,2]
[311589386,1705255104122,213.51970308,0.0002134,2]
[311589387,1705255104158,6072.64665498,0.00022,2]
[311589388,1705255104652,883.53200133,0.00022,2]
[311589389,1705255104707,1892.11622104,0.00022,2]
[311589390,1705255105136,18932.66999613,0.00022,2]
[311589391,1705255105998,845.11321729,0.00022,2]
[311589392,1705255106673,155.0,0.00022,2]
[311589393,1705255107102,217.80003105,0.00022,2]
[311589394,1705255108436,155.0,0.00022,2]
[311589395,1705255108679,155.0,0.00022,2]
[311589396,1705255108783,360.50027838,0.00022,2]
[311589397,1705255109594,855.73420293,0.00022,2]
[311589398,1705255110361,155.0,0.00022,2]
[311589399,1705255110666,3197.79936034,0.00022,2]
[311589400,1705255111621,1031.56152328,0.00022,2]
[311589401,1705255111968,176.98991788,0.00022,2]
[311589402,1705255112748,608.76242079,0.00022,2]
[311589403,1705255113933,531.45138507,0.00022,2]
[311589404,1705255114883,1022.3924617,0.00022,2]
[311589405,1705255115060,282.23575241,0.00022,2]
[311589406,1705255115564,543.47920788,0.00022,2]
[311589407,1705255116496,1095.55776116,0.00022,2]
[311589408,1705255117055,15676.33896332,0.00022,2]
[311589409,1705255117722,155.0,0.00022,2]
[311589410,1705255118350,7411.89166272,0.00022,2]
[311589411,1705255118922,283.72064284,0.00022,2]
[311589412,1705255119285,532.55789459,0.00022,2]
[311589413,1705255120607,1596.49083475,0.000176,2]
[311589414,1705255120710,1888.97720964,0.00022,2]
[311589415,1705255122055,401.58703631,0.0002134,2]
[311589416,1705255122533,155.0,0.00022,2]
[311589417,1705255123978,378.76513653,0.00022,2]
[311589418,1705255124101,6072.64665498,0.00022,2]
[311589419,1705255125633,18932.66999613,0.00022,2]
[311589420,1705255125671,5182.0088255,0.00022,2]
[311589421,1705255126045,155.0,0.00022,2]
[311589422,1705255126657,155.0,0.00022,2]
[311589423,1705255128356,155.0,0.00022,2]
[311589424,1705255128649,883.53200133,0.00022,2]
[311589425,1705255128786,360.50027838,0.00022,2]
[311589426,1705255130074,845.11321729,0.00022,2]
[311589427,1705255130659,781.74239123,0.00022,2]
[311589428,1705255130752,608.63905508,0.00022,2]
[311589429,1705255130871,155.0,0.00022,2]
[311589430,1705255130898,1019.99258756,0.00022,2]
[311589431,1705255131578,854.98308851,0.00022,2]
[311589432,1705255133049,282.23575241,0.00022,2]
[311589433,1705255133079,15683.21613264,0.00022,2]
[311589434,1705255134137,446.64129223,0.00020466,2]
[311589435,1705255134513,1096.02714429,0.00022,2]
[311589436,1705255135415,543.47920788,0.00022,2]
[311589437,1705255135903,535.52856936,0.00022,2]
[311589438,1705255137750,242.88431625,0.00022,2]
[311589439,1705255138691,1890.54671534,0.00022,2]
[311589440,1705255140087,291.58726637,0.00022,2]
[311589441,1705255140315,403.28352331,0.0002134,2]
[311589442,1705255140622,1596.02913964,0.000176,2]
[311589443,1705255140750,283.72064284,0.00022,2]
[311589444,1705255142541,155.0,0.00022,2]
[311589445,1705255142661,155.0,0.00022,2]
[311589446,1705255142762,155.0,0.0002,2]
[311589447,1705255143643,18932.66999613,0.00022,2]
[311589448,1705255143996,176.98991788,0.00022,2]
[311589449,1705255144367,304.23735471,0.00022,2]
[311589450,1705255144794,360.50027838,0.00022,2]
[311589451,1705255145702,5182.0088255,0.00022,2]
[311589452,1705255146875,155.0,0.00022,2]
[311589453,1705255148192,845.11321729,0.00022,2]
[311589454,1705255148231,6072.64665498,0.00022,2]
[311589455,1705255152066,263.23464751,0.00022,2]
[311589456,1705255152346,2691.28194893,0.00022,2]
[311589457,1705255152510,1095.08837803,0.00022,2]
[311589458,1705255153057,282.23575241,0.00022,2]
[311589459,1705255153287,532.75409653,0.00022,2]
[311589460,1705255153589,856.37486871,0.00022,2]
[311589461,1705255153850,620.82398002,0.00022075,2]
[311589462,1705255154137,408.89966322,0.00020466,2]
[311589463,1705255154653,883.53200133,0.00022,2]
[311589464,1705255154877,1022.3924617,0.00022,2]
[311589465,1705255157499,291.71338211,0.00022,2]
[311589466,1705255157634,1031.99438221,0.00022,2]
[311589467,1705255158756,282.39821502,0.00022,2]
[311589468,1705255159419,543.47920788,0.00022,2]
[311589469,1705255159673,5182.0088255,0.00022,2]
[311589470,1705255159980,176.98991788,0.00022,2]
[311589471,1705255161052,360.50027838,0.00022,2]
[311589472,1705255161644,18932.66999613,0.00022,2]
[311589473,1705255162666,224.01258322,0.00022,2]
[311589474,1705255166544,189.44894637,0.00022,2]
[311589475,1705255166702,1890.54671534,0.00022,2]
[311589476,1705255167062,15683.21613264,0.00022,2]
[311589477,1705255168011,846.13473323,0.00022,2]
[311589478,1705255168800,730.38214306,0.00021,2]
[311589479,1705255169050,282.36378265,0.00022,2]
[311589480,1705255172513,1090.81313736,0.00022,2]
[311589481,1705255172680,883.53200133,0.00022,2]
[311589482,1705255173288,532.75409653,0.00022,2]
[311589483,1705255173641,605.00984432,0.00022,2]
[311589484,1705255174886,1022.3924617,0.00022,2]
[311589485,1705255175504,291.71338211,0.00022,2]
[311589486,1705255175600,856.37486871,0.00022,2]
[311589487,1705255177820,621.10234536,0.00022075,2]
[311589488,1705255179430,543.47920788,0.00022,2]
[311589489,1705255180147,18932.66999613,0.00022,2]
[311589490,1705255182265,6080.12913605,0.00022,2]
[311589491,1705255182819,360.50027838,0.00022,2]
[311589492,1705255184789,730.38214306,0.00021,2]
[311589493,1705255185102,15683.21613264,0.00022,2]
[311589494,1705255186006,844.09170135,0.00022,2]
[311589495,1705255189990,176.8097185,0.00022,2]
[311589496,1705255190653,883.53200133,0.00022,2]
[311589497,1705255190879,1018.79265049,0.00022,2]
[311589498,1705255191052,282.10772217,0.00022,2]
[311589499,1705255191283,532.75409653,0.00022,2]
[311589500,1705255193598,856.37486871,0.00022,2]
[311589501,1705255195685,5182.0088255,0.00022,2]
[311589502,1705255197539,291.33503489,0.00022,2]
[311589503,1705255197836,621.10234536,0.00022075,2]
[311589504,1705255198118,6065.16417391,0.00022,2]
[311589505,1705255200158,18932.66999613,0.00022,2]
[311589506,1705255201432,575.67191605,0.00022,2]
[311589507,1705255203778,15683.21613264,0.00022,2]
[311589508,1705255204108,850.29410141,0.00022,2]
[311589509,1705255204802,360.79817652,0.00022,2]
[311589510,1705255204843,730.38214306,0.00021,2]
[311589511,1705255206389,501.09834726,0.00021999,2]
[311589512,1705255208679,472.30843214,0.00022,2]
[311589513,1705255208885,1021.19252463,0.00022,2]
[311589514,1705255209286,532.75409653,0.00022,2]
[311589515,1705255210700,1838.89593157,0.00022,2]
[311589516,1705255211080,282.36378265,0.00022,2]
[311589517,1705255211587,856.37486871,0.00022,2]
[311589518,1705255212541,3123.01195947,0.00021845,2]
[311589519,1705255213516,452.23219098,0.00018396,2]
[311589520,1705255215824,621.10234536,0.00022075,2]
[311589521,1705255216116,6072.64665498,0.00022,2]
[311589522,1705255216161,18932.66999613,0.00022,2]
[311589523,1705255219516,291.93965338,0.00022,2]
[311589524,1705255219725,2979.47080485,0.00022,2]
[311589525,1705255220800,720.8757461,0.00021,2]
[311589526,1705255224905,237.10487311,0.00022,2]
[311589527,1705255225106,11508.02759407,0.00022,2]
[311589528,1705255227055,282.36378265,0.00022,2]
[311589529,1705255229528,360.02648272,0.00018396,2]
[311589530,1705255230887,725.1056492,0.00022,2]
[311589531,1705255231587,856.37486871,0.00022,2]
[311589532,1705255233290,532.75409653,0.00022,2]
[311589533,1705255234541,3123.01195947,0.00021845,2]
[311589534,1705255235829,619.988884,0.00022075,2]
[311589536,1705255238111,5501.37700132,0.00022,2]
[311589537,1705255238806,417.6537997,0.00021,2]
[311589538,1705255239510,291.48711084,0.00022,2]
[311589539,1705255246980,5462.44366819,0.00022,2]
[311589540,1705255249077,282.36378265,0.00022,2]
[311589541,1705255251307,532.75409653,0.00022,2]
[311589542,1705255251625,856.37486871,0.00022,2]
[311589543,1705255251849,620.82398002,0.00022075,2]
[311589544,1705255257519,300.3404617,0.00022,2]
[311589546,1705255265515,361.5472874,0.00018396,2]
[311589547,1705255270538,3124.2773342,0.00021845,2]
[311589548,1705255273096,282.36378265,0.00022,2]
[311589549,1705255273322,532.75409653,0.00022,2]
[311589550,1705255273841,620.82398002,0.00022075,2]
[311589551,1705255278089,363.34382488,0.00022,2]
[311589553,1705255288879,1815.64345858,0.00021845,2]
[311589554,1705255293299,316.97059909,0.00022,2]
[311589555,1705255295090,354.99435634,0.00022,2]
[311589556,1705255295843,605.10609869,0.00022075,2]
[311589561,1705255377559,250.0,0.00022,2]
[311589566,1705255438012,464.470261,0.0002205,2]
[311589567,1705255443173,150.0,0.00022,2]
[311589569,1705255526530,685.73,0.00022037,2]
[311589570,1705255597056,166.36,0.0002209,2]
[311589571,1705255620652,165.43,0.00021928,2]
[311589572,1705255637714,188.44,0.00021917,2]
[311589573,1705255656206,250.0,0.00021854,2]
[311589574,1705255662772,509.64,0.00019925,2]
[311589575,1705255664087,3187.14443099,0.00021857,2]
[311589576,1705255688079,3188.36893674,0.00021857,2]
[311589579,1705255700061,162.12,0.00021782,10]
[311589580,1705255712087,2706.1190098,0.00021857,2]
[311589581,1705255722352,192.90231929,0.00020696,2]
[311589586,1705255730093,193.80600731,0.00022075,2]
[311589590,1705255759641,175.32,0.00016712,2]
[311589591,1705255759953,157.21,0.00021896,2]
[311589594,1705255779327,1000.0,0.00021708,2]
[311589595,1705255791532,23900.0,0.00021687,2]
[311589598,1705255830309,341.88,0.00021683,2]
[311589606,1705255831411,-230.42248665,0.00022139,2]
[311589607,1705255831420,-215.397955,0.00022139,2]
[311589608,1705255831430,-2533.96328712,0.0002214,2]
[311589621,1705255837468,-808.65945868,0.00022139,2]
[311589622,1705255837528,-2518.1209394,0.00022139,2]
[311589623,1705255837538,-560.25023134,0.00022139,2]
[311589624,1705255837547,-71.04749243,0.0002214,2]
[311589625,1705255837557,-370.92564155,0.0002214,2]
[311589626,1705255837566,-628.42706181,0.0002214,2]
[311589627,1705255837575,-246.96938852,0.0002214,2]
[311589628,1705255837585,-532.51217277,0.00022141,2]
[311589629,1705255837596,-10548.52020323,0.00022141,2]
[311589630,1705255837607,-1362.77400223,0.00022142,2]
[311589631,1705255837616,-265.0,0.00022143,2]
[311589632,1705255837626,-376.61875021,0.00022143,2]
[311589633,1705255837636,-2318.12607023,0.00022143,2]
[311589634,1705255837647,-6764.0556385,0.00022143,2]
[311589635,1705255837662,-2664.30493838,0.00022143,2]
[311589636,1705255837740,-515.8,0.00022143,2]
[311589637,1705255837797,-1379.10538633,0.00022143,2]
[311589638,1705255837858,-436.18,0.00022143,2]
[311589677,1705255839871,-546.23322818,0.00022143,2]
[311589678,1705255839984,-5169.11760026,0.00022143,2]
[311589679,1705255840611,-527.51955933,0.00022138,2]
[311589680,1705255840623,-7722.65465496,0.00022143,2]
[311589681,1705255840635,-558.40855631,0.00022144,2]
[311589682,1705255840645,-2473.86434321,0.00022144,2]
[311589683,1705255840658,-302.03531833,0.00022144,2]
[311589684,1705255840668,-33355.37935014,0.00022145,2]
[311589685,1705255840678,-150.0,0.00022149,2]
[311589686,1705255840687,-2000.0,0.00022171,2]
[311589687,1705255840696,-509.64,0.00022189,2]
[311589688,1705255840705,-250.0,0.00022274,2]
[311589689,1705255840714,-162.12,0.00022316,10]
[311589690,1705255840724,-157.21,0.00022411,2]
[311589692,1705255840733,-187.43470526,0.00022441,2]
[311589694,1705255840743,-8357.41,0.00022499,2]
[311589696,1705255840752,-6374.0,0.000225,2]
[311589698,1705255840761,-150.0,0.00022548,2]
[311589700,1705255840770,-187.43470526,0.00022594,2]
[311589702,1705255840780,-680.11569561,0.00022731,2]
[311589704,1705255840789,-187.43470526,0.00022747,2]
[311589706,1705255840799,-263.08356569,0.00022768,2]
[311589708,1705255840809,-939.56400894,0.00022768,2]
[311589710,1705255840818,-155.0,0.00022768,2]
[311589713,1705255840828,-211.4343928,0.00022768,2]
[311589714,1705255840838,-472.70124021,0.00022768,2]
[311589717,1705255840848,-2612.76863363,0.00022768,2]
[311589719,1705255840857,-232.92375042,0.00022768,2]
[311589721,1705255840867,-155.0,0.00022768,2]
[311589722,1705255840876,-5095.28107249,0.00022768,2]
[311589723,1705255840886,-2777.17009316,0.00022768,2]
[311589724,1705255840895,-376.78302695,0.00022768,2]
[311589725,1705255840905,-158.48029498,0.00022768,2]
[311589726,1705255840915,-242.20345528,0.00022768,2]
[311589727,1705255840923,-842.13097267,0.00022768,2]
[311589728,1705255840933,-2898.41694592,0.00022768,2]
[311589729,1705255840942,-336.7179586,0.00022768,2]
[311589730,1705255840952,-234.11386093,0.00022768,2]
[311589731,1705255840961,-3041.02252982,0.00022769,2]
[311589733,1705255840970,-5926.53401373,0.00022831,2]
[311589735,1705255840979,-1131.61097047,0.00022832,2]
[311589737,1705255840988,-162.12,0.0002285,10]
[311589738,1705255840998,-150.99,0.00022893,2]
[311589739,1705255841007,-187.43470526,0.000229,2]
[311589740,1705255841017,-1510.0,0.000229,2]
[311589741,1705255841026,-189.10579447,0.000229,2]
[311589742,1705255841036,-154.94769829,0.000229,2]
[311589743,1705255841045,-1966.58378073,0.000229,2]
[311589744,1705255841054,-219.64820223,0.000229,4]
[311589745,1705255841063,-2691.48551205,0.000229,2]
[311589746,1705255841073,-458.36658527,0.000229,2]
[311589747,1705255841083,-157.21,0.00022925,2]
[311589748,1705255841092,-185.11398284,0.0002299,2]
[311589749,1705255841103,-185.11398284,0.0002299,2]
[311589750,1705255841112,-185.11398284,0.0002299,2]
[311589751,1705255841121,-1202.14844517,0.00022995,2]
[311589752,1705255841130,-227.56303529,0.00022996,2]
[311589753,1705255841140,-295.01959701,0.00022997,2]
[311589754,1705255841149,-113008.27251209,0.00022997,2]
[311589755,1705255841159,-39069.10772077,0.00022998,2]
[311589756,1705255841169,-529.74860892,0.00022999,2]
[311589757,1705255841179,-5099.30032581,0.00022999,2]
[311589758,1705255841188,-251.25307916,0.00022999,2]
[311589759,1705255841198,-155.89376086,0.00022999,2]
[311589760,1705255841208,-155.91143842,0.00022999,2]
[311589761,1705255841217,-676.40668011,0.00022999,2]
[311589762,1705255841227,-218.58650666,0.00022999,2]
[311589763,1705255841236,-541.91712272,0.00022999,2]
[311589764,1705255841245,-155.0,0.00022999,2]
[311589765,1705255841254,-259.11318057,0.00022999,2]
[311589766,1705255841264,-1002.68409576,0.00022999,2]
[311589767,1705255841275,-184.06324017,0.00022999,2]
[311589768,1705255841284,-300.0,0.00022999,2]
[311589769,1705255841513,-300.0,0.00022999,2]
[311589770,1705255841575,-144155.13367852,0.00023,2]
[311589771,1705255841585,-40421.12078714,0.00023,2]
[311589772,1705255841609,-507508.27201883,0.00023,2]
[311589773,1705255841621,-3558.33205014,0.00023,2]
[311589774,1705255841632,-699.84917583,0.00023,2]
[311589775,1705255841643,-1978.47189437,0.00023,2]
[311589776,1705255841654,-339.53040067,0.00023,2]
[311589777,1705255841682,-1255.3554716,0.00023,2]
[311589778,1705255841703,-400.25276388,0.00022138,2]
[311589779,1705255841712,-43.56516594,0.00023,2]
[311589797,1705255842787,-2137.87268645,0.00022138,2]
[311589798,1705255842797,-215675.31524637,0.00023,2]
[311589799,1705255842809,-408199.63444746,0.00023,2]
[311589801,1705255842836,-5115.12106589,0.00023,2]
[311589803,1705255842847,-1268.87468852,0.00023,2]
[311589823,1705255842971,-19000.90173546,0.00022142,2]
[311589825,1705255842981,-300.45887315,0.00023,2]
[311589828,1705255842992,-659.68511788,0.00023,2]
[311589830,1705255843003,-1034.62837885,0.00023,2]
[311589902,1705255845764,-230.42248665,0.00022995,2]
[311589903,1705255845774,-10643.88460656,0.00023,2]
[311589904,1705255845873,-291.53343858,0.00023,2]
[311589905,1705255845934,-333942.45993019,0.00023,2]
[311589950,1705255995633,2000.0,0.0002205,2]
[311589951,1705255997001,650.58,0.00022018,2]
[311589952,1705256005250,177.01,0.00017639,2]
[311589953,1705256032357,33304.69,0.00021938,2]
[311589954,1705256136271,176.17,0.00022,2]
[311589955,1705256139978,500.0,0.00021938,2]
[311589956,1705256184346,-2473.86434321,0.00022148,2]
[311589957,1705256184370,-230.42248665,0.00022149,2]
[311589958,1705256184392,-3326.78039808,0.00022149,2]
[311589959,1705256184415,-33355.37935014,0.00022149,2]
[311589960,1705256184437,-215.397955,0.0002215,2]
[311589961,1705256184461,-2605.01077955,0.0002215,2]
[311589962,1705256184485,-5274.92118207,0.0002215,2]
[311589963,1705256184508,-246.96938852,0.00022151,2]
[311589964,1705256184530,-848.0,0.00022151,2]
[311589965,1705256185423,-25197.45144661,0.00022152,2]
[311589966,1705256185509,-300.0,0.00022152,2]
[311589967,1705256185538,-150.0,0.00022152,2]
[311589968,1705256185558,-2714.93,0.00022154,2]
[311589969,1705256198485,1961.89765964,0.00022082,2]
[311589970,1705256201294,200.0,0.00022182,2]
[311589971,1705256204531,160.28,0.00022187,2]
[311589972,1705256223760,200.0,0.00022026,2]
[311589973,1705256239931,1359.44,0.00021997,2]
[311589974,1705256312555,200.0,0.00022025,2]
[311589975,1705256317431,672.26,0.00021997,2]
[311589976,1705256326979,275.74,0.00021997,10]
[311589977,1705256345565,232.85,0.00021927,2]
[311589978,1705256350673,2380.23997506,0.00022199,2]
[311589979,1705256353941,485.36,0.0002191,2]
[311589980,1705256370985,-527.51955933,0.00022297,2]
[311589981,1705256371008,-217.81068994,0.00022297,2]
[311589982,1705256371031,-215.397955,0.00022298,2]
[311589983,1705256371053,-246.96938852,0.00022299,2]
[311589984,1705256371075,-230.42248665,0.00022299,2]
[311589985,1705256372911,150.0,0.0002191,2]
[311589986,1705256391126,505.03,0.00019996,2]
[311589987,1705256391282,505.03,0.00022259,2]
[311589988,1705256401120,174.23,0.00021936,2]
[311589989,1705256420891,16095.96,0.00021936,2]
[311589994,1705256452545,500.0,0.00021936,2]
[311589995,1705256471232,2000.0,0.00021913,2]
[311589996,1705256495702,177.01,0.00017518,2]
[311589997,1705256496001,236.76,0.00021898,2]
[311589998,1705256530305,617.62,0.00021925,2]
[311589999,1705256555081,324.97319665,0.00022202,2]
[311590002,1705256651823,159.9,0.00022114,2]
[311590003,1705256654478,160.28,0.00022059,2]
[311590004,1705256679272,840.0,0.00021918,2]
[311590005,1705256696547,1409.12,0.00021883,2]
[311590006,1705256703989,205.0,0.00022078,2]
[311590007,1705256706925,167.09,0.00021883,2]
[311590008,1705256717755,159.21,0.0002187,2]
[311590009,1705256750217,350.6,0.00022,2]
[311590010,1705256770191,220.6,0.00021868,10]
[311590011,1705256821247,-230.42248665,0.00022302,2]
[311590012,1705256821271,-1139.25474807,0.00022304,2]
[311590013,1705256821293,-3078.63330197,0.00022304,2]
[311590014,1705256821313,-25197.45144661,0.00022304,2]
[311590015,1705256821352,-45698.19482369,0.00022305,2]
[311590016,1705256823040,150.0,0.00022303,2]
[311590017,1705256834347,200.0,0.00021864,2]
[311590018,1705256845887,336.13,0.00021866,2]
[311590019,1705256858757,454.52,0.00019948,2]
[311590020,1705256906687,-454.5,0.00022212,2]
[311590023,1705256941030,-0.02,0.00022212,2]
[311590024,1705256941051,-3457.10928421,0.00022535,2]
[311590025,1705256941072,-397.91743256,0.00022536,2]
[311590026,1705256941092,-1891.14004649,0.00022536,2]
[311590027,1705256941115,-44253.81323674,0.00022542,2]
[311590028,1705256950139,-5000.0,0.00022542,2]
[311590030,1705256957654,-5000.0,0.00022542,2]
[311590031,1705256973286,150.0,0.000218,2]
[311590032,1705256973996,576.44,0.000218,2]
[311590033,1705256979780,-1000.0,0.00022542,2]
[311590035,1705256991401,-9273.56,0.00022542,2]
[311590037,1705257009918,-257.04625262,0.00022542,2]
[311590038,1705257009939,-242.95374738,0.00022542,2]
[311590039,1705257019617,2000.0,0.00021801,2]
[311590040,1705257028984,-200.0,0.000225,2]
[311590068,1705257031728,-114.05012088,0.000225,2]
[311590070,1705257031737,-16852.44221153,0.00022542,2]
[311590099,1705257034049,-32019.87949979,0.00022542,2]
[311590104,1705257036472,-150.0,0.00022542,2]
[311590107,1705257039569,-17290.13427856,0.00022542,2]
[311590108,1705257039582,-6486.32809007,0.00022542,2]
[311590109,1705257039622,-21153.18585854,0.00022542,2]
[311590110,1705257039636,-49018.24372535,0.00022542,2]
[311590111,1705257039732,-512.56766737,0.00022542,2]
[311590112,1705257039744,-438.47,0.00022542,2]
[311590113,1705257039822,-926.00155544,0.00022542,2]
[311590151,1705257040289,-4380.744,0.00022542,2]
[311590153,1705257040302,-474.95197116,0.00022542,2]
[311590165,1705257040555,-553.54469613,0.00022542,2]
[311590166,1705257040568,-549.04591209,0.00022542,2]
[311590192,1705257040802,-10888.9711811,0.00022542,2]
[311590197,1705257040844,-268.2551498,0.00022542,2]
[311590207,1705257040924,-836.56308576,0.00022542,2]
[311590209,1705257040937,-5206.3307373,0.00022542,2]
[311590211,1705257040952,-13147.47850408,0.00022542,2]
[311590213,1705257040964,-43756.16966365,0.00022542,2]
[311590216,1705257040982,-323.02359802,0.00022542,2]
[311590385,1705257042592,-17170.73767727,0.00022542,2]
[311590386,1705257042610,-1164.79951951,0.00022542,2]
[311590396,1705257042731,-4622.217984,0.00022542,2]
[311590398,1705257042743,-443.052,0.00022542,2]
[311590412,1705257042858,-3011.43818286,0.00022542,2]
[311590414,1705257042871,-50700.0962665,0.00022542,2]
[311590416,1705257042881,-150.0,0.000226,2]
[311590418,1705257042891,-31809.7403,0.00022666,2]
[311590420,1705257042900,-596.0377031,0.00022692,2]
[311590422,1705257042910,-150.0,0.00022731,2]
[311590424,1705257042919,-1216.85197979,0.00022732,2]
[311590427,1705257042929,-150.0,0.00022733,2]
[311590429,1705257042938,-300.0,0.00022738,2]
[311590431,1705257042951,-150.0,0.00022739,2]
[311590433,1705257042961,-183.54,0.00022739,2]
[311590435,1705257042971,-214.41702735,0.00022741,2]
[311590437,1705257042981,-300.0,0.00022764,2]
[311590439,1705257042990,-217.43278858,0.00022764,2]
[311590441,1705257043001,-1358.60017821,0.00022764,2]
[311590443,1705257043011,-212.7086581,0.00022764,2]
[311590445,1705257043020,-227.65552032,0.00022764,2]
[311590447,1705257043030,-5437.35042652,0.00022765,2]
[311590449,1705257043040,-528.68959497,0.00022765,2]
[311590452,1705257043050,-1289.31357319,0.00022765,2]
[311590454,1705257043060,-2604.97846412,0.00022765,2]
[311590456,1705257043069,-6720.26454185,0.00022765,2]
[311590458,1705257043079,-1703.01103885,0.00022765,2]
[311590460,1705257043088,-203.02938773,0.00022765,2]
[311590462,1705257043098,-523.33688238,0.00022765,2]
[311590464,1705257043108,-155.0,0.00022765,2]
[311590466,1705257043117,-155.0,0.00022765,2]
[311590468,1705257043127,-465.12840912,0.00022765,2]
[311590470,1705257043138,-765.80999369,0.00022765,2]
[311590473,1705257043151,-155.0,0.00022765,2]
[311590475,1705257043161,-347.47765446,0.00022766,10]
[311590477,1705257043171,-150.0,0.00022766,2]
[311590479,1705257043182,-156.0,0.00022766,2]
[311590481,1705257043191,-1035.92987296,0.00022766,2]
[311590483,1705257043204,-2677.25736094,0.00022766,2]
[311590485,1705257043213,-73953.20037902,0.00022766,2]
[311590487,1705257043223,-182493.65342856,0.00022767,2]
[311590489,1705257043233,-576.44,0.00022778,2]
[311590491,1705257043243,-169.66887404,0.00022782,2]
[311590493,1705257043252,-150.0,0.00022791,2]
[311590495,1705257043262,-163.27,0.00022792,2]
[311590497,1705257043271,-150.0,0.00022805,2]
[311590500,1705257043281,-150.0,0.00022808,2]
[311590502,1705257043294,-150.0,0.00022809,2]
[311590504,1705257043304,-150.0,0.00022811,2]
[311590506,1705257043314,-150.0,0.00022813,2]
[311590508,1705257043324,-150.0,0.00022815,2]
[311590510,1705257043335,-150.0,0.00022816,2]
[311590512,1705257043345,-150.0,0.00022834,2]
[311590514,1705257043356,-302.48552543,0.00022852,2]
[311590516,1705257043366,-150.0,0.00022881,2]
[311590520,1705257043391,-150.0,0.00022883,2]
[311590522,1705257043401,-300.0,0.00022883,2]
[311590524,1705257043411,-556.46883921,0.00022883,2]
[311590526,1705257043420,-184.60091716,0.00022886,2]
[311590528,1705257043431,-182.71826452,0.00022886,2]
[311590530,1705257043440,-150.0,0.00022886,2]
[311590532,1705257043452,-150.0,0.00022887,2]
[311590534,1705257043461,-182.7182645,0.0002289,2]
[311590536,1705257043470,-150.0,0.00022891,2]
[311590538,1705257043480,-300.0,0.00022891,2]
[311590540,1705257043489,-182.7182645,0.00022893,2]
[311590542,1705257043498,-182.7182645,0.00022897,2]
[311590544,1705257043508,-182.7182645,0.000229,2]
[311590546,1705257043518,-305.5777235,0.000229,2]
[311590548,1705257043527,-1802.70179903,0.000229,2]
[311590550,1705257043537,-215.95277882,0.000229,2]
[311590552,1705257043547,-300.0,0.0002292,2]
[311590555,1705257043558,-150.0,0.00022921,2]
[311590557,1705257043567,-150.0,0.00022934,2]
[311590559,1705257043577,-1500.0,0.00022937,2]
[311590561,1705257043586,-150.0,0.00022945,2]
[311590563,1705257043595,-300.0,0.00022954,2]
[311590565,1705257043604,-150.0,0.00022966,2]
[311590567,1705257043614,-150.0,0.00022973,2]
[311590569,1705257043623,-150.0,0.00022974,2]